Cogmind - Beta 15 *** ADVENTURER MODE // 2025.06.06 @ 06:57:08 Player: NED1124 Result: Destroyed by G-34 Mercenary with Small Laser Performance ------------- Evolutions (1) 500 Regions Visited (4) 800 Robots Destroyed (25) 125 Value Destroyed (835) 835 Prototype IDs (1) 20 Alien Tech Used (0) 0 Bonus (200) 200 TOTAL SCORE: 2480 Bonus ------- Pacifist 200 Cogmind --------- Core Integrity 0/400 Matter 275/300 Energy 99/100 System Corruption 0% Temperature Cool (6) Movement Core (100) Ox1 Location -9/Storage Parts ------- > --- POWER (1) -------- (None) > --- PROPULSION (2) --- (None) > --- UTILITY (3) ------ Small Storage Unit > --- WEAPON (3) ------- (None) > --- INVENTORY (8) ---- Light Deuterium Engine High-capacity Matter Pod (200) High-powered Tractor Beam Rocket Launcher Peak State ------------ > --- POWER ------------ Light Ion Engine > --- PROPULSION ------- Aluminum Leg Aluminum Leg > --- UTILITY ---------- Heat Sink Small Storage Unit Core Shielding > --- WEAPON ----------- Small Laser Small Laser Assault Cannon > --- INVENTORY -------- Ion Engine Light Deuterium Engine Aluminum Leg High-capacity Matter Pod High-powered Tractor Beam Assault Cannon Rocket Launcher [Rating: 12] Favorites ----------- Power Ion Engine Engine Ion Engine Propulsion Aluminum Leg Leg Aluminum Leg Utility Small Storage Unit Device Heat Sink Storage Small Storage Unit Protection Core Shielding Weapon Small Laser Energy Gun Small Laser Ballistic Gun Light Assault Rifle Ballistic Cannon Assault Cannon Launcher EMP Blaster Build | -11 -10 -10 -9 -9 ------- Run | Yrd Mat Min Mat Sto Slots Evolved 2 | . . . 2 . Power . | . . . . . Propulsion . | . . . . . Utility 1 | . . . 1 . Weapon 1 | . . . 1 . Parts Attached 25 | 6 . . 16 3 Power 5 | 1 . . 3 1 Engine 5 | 1 . . 3 1 Core . | . . . . . Reactor . | . . . . . Propulsion 6 | 2 . . 3 1 Treads . | . . . . . Leg 6 | 2 . . 3 1 Wheel . | . . . . . Hover . | . . . . . Flight . | . . . . . Utility 6 | 1 . . 4 1 Device 2 | . . . 2 . Storage 2 | 1 . . . 1 Processor . | . . . . . Hackware . | . . . . . Protection 2 | . . . 2 . Artifact . | . . . . . Weapon 8 | 2 . . 6 . Energy Gun 3 | 1 . . 2 . Energy Cannon . | . . . . . Ballistic Gun 2 | 1 . . 1 . Ballistic Cannon 2 | . . . 2 . Launcher 1 | . . . 1 . Special Weapon . | . . . . . Impact Weapon . | . . . . . Slashing Weapon . | . . . . . Piercing Weapon . | . . . . . Special Melee Weapon . | . . . . . Unidentified Prototypes 1 | . . . . 1 Parts Lost 7 | . . . 3 4 Power 3 | . . . 1 2 Propulsion 3 | . . . 2 1 Utility . | . . . . . Weapon 1 | . . . . 1 Highest Loss Streak 2 | . . . 2 2 To Critical Strikes . | . . . . . Average Backups 5 | . 2 2 6 5 Power 1 | . 1 1 2 1 Propulsion . | . . . . . Utility 1 | . . . 1 2 Weapon 1 | . 1 1 2 1 Tool/Special . | . . . . . Unused Backups 5 | . . . . 5 Power 1 | . . . . 1 Propulsion . | . . . . . Utility 3 | . . . . 3 Weapon 1 | . . . . 1 Tool/Special . | . . . . . Average Slot Usage (%) 82 | . 85 85 94 38 Engine 10 | . 14 14 10 6 Leg 19 | . 28 28 20 3 Device 6 | . . . 10 5 Storage 11 | . 14 14 11 7 Protection 6 | . . . 10 5 Energy Gun 15 | . 14 14 20 4 Ballistic Gun 5 | . 14 14 3 . Ballistic Cannon 2 | . . . 3 5 Launcher 2 | . . . 3 . Peak Build Rating 12 | 6 6 6 12 10 Average Rating 8 | 4 6 6 10 5 On Entrance 5 | . 6 6 6 9 Naked Turns 105 | . . . . 105 Heaviest Build 19 | 12 12 12 19 18 Greatest Support 20 | 20 20 20 20 10 Greatest Overweight (x) 5 | 1 . . 5 5 Average Overweight (x) . | . . . . . Largest Inventory Capacity 8 | 8 8 8 8 8 Average Capacity 7 | 6 8 8 8 6 Most Carried 8 | 2 2 2 8 6 Average Carried 5 | . 2 2 7 5 Final Capacity 8 | 8 8 8 8 8 Final Carried 6 | 2 2 2 6 4 Class Distribution -------------------- 41% | Mutant 40% | Tank 9% | Scavenger-Mutant 3% | Scavenger-Tank 3% | Gunner Dominant Class ---------------- Mutant | -10/Materials Mutant | -10/Mines Tank | -9/Materials Mutant | -9/Storage Resources | -11 -10 -10 -9 -9 ----------- Run | Yrd Mat Min Mat Sto Matter Collected 762 | 162 . . 558 42 Remotely . | . . . . . Salvage Created 970 | . . . 876 94 Parts 52 | . . . 46 6 Haulers Intercepted . | . . . . . Recyclers Shooed 3 | . . . 3 . Parts Field Recycled . | . . . . . Retrieved Matter . | . . . . . Parts Self-Destructed . | . . . . . Prevented . | . . . . . Kills | -11 -10 -10 -9 -9 ------- Run | Yrd Mat Min Mat Sto Combat Hostiles Destroyed 23 | . . . 21 2 Guns 11 | . . . 11 . Cannons 6 | . . . 4 2 AOE 4 | . . . 4 . Classes Destroyed 5 | . . . 5 . Builder 1 | . . . 1 . Recycler 1 | . . . 1 . Swarmer 3 | . . . 3 . Grunt 15 | . . . 15 . Sentry 5 | . . . 3 2 Best Kill Streak 3 | . . . 3 1 Combat Bots Only 2 | . . . 2 1 Max Kills in Single Turn 2 | . . . 2 1 Gunslinging . | . . . . . Exploded 1 | . . . 1 . Melee . | . . . . . Uniques/NPCs Destroyed . | . . . . . Combat | -11 -10 -10 -9 -9 -------- Run | Yrd Mat Min Mat Sto Hostile Shots Fired 201 | . 4 . 145 52 Missed 64 | . 1 . 52 11 Hits 137 | . 3 . 93 41 Projectile 137 | . 3 . 93 41 Critical Strikes 3 | . . . 1 2 Damage Taken 1482 | . 17 . 898 567 Core 406 | . . . 176 230 Absorbed by Shields . | . . . . . Redirected to Shielding 25 | . . . 15 10 Ignored by Resistances 440 | . 6 . 279 155 Core Remaining (%) 100 | 100 . 100 . . Volleys Fired 59 | . . . 54 5 Largest 3 | . . . 3 2 Hottest 117 | . . . 117 77 Shots Fired 165 | . . . 158 7 Gun 130 | . . . 128 2 Cannon 20 | . . . 15 5 Launcher 15 | . . . 15 . Special . | . . . . . Kinetic 44 | . . . 39 5 Thermal 106 | . . . 104 2 Explosive . | . . . . . Electromagnetic 15 | . . . 15 . Robot Hit Streak 36 | . . . 36 2 Robot Miss Streak 4 | . . . 4 1 Penetration Max . | . . . . . Secondary Targets . | . . . . . Shots Hit Robots 124 | . . . 120 4 Core Hits 45 | . . . 42 3 Critical Kills . | . . . . . Critical Parts Destroyed 1 | . . . 1 . Critical Strikes 3 | . . . 3 . Destroy 1 | . . . 1 . Blast 2 | . . . 2 . Melee Attacks . | . . . . . Impact . | . . . . . Slashing . | . . . . . Piercing . | . . . . . Sneak Attacks . | . . . . . Combat Hostiles . | . . . . . Follow-up Attacks . | . . . . . Damage Inflicted 2035 | . . . 1931 104 Guns 998 | . . . 987 11 Cannons 359 | . . . 282 77 Explosions 619 | . . . 619 . Melee . | . . . . . Ramming 59 | . . . 43 16 Kinetic 475 | . . . 398 77 Thermal 983 | . . . 972 11 Explosive . | . . . . . Electromagnetic 518 | . . . 518 . Impact . | . . . . . Slashing . | . . . . . Piercing . | . . . . . Highest Corruption . | . . . . . Average Corruption . | . . . . . Corruption Purged . | . . . . . Corruption Blocked . | . . . . . Overload Shots . | . . . . . Overflow Damage 15 | . . . 15 . Projectiles . | . . . . . Explosions 15 | . . . 15 . Melee . | . . . . . Knockbacks 5 | . . . 5 . Impact 1 | . . . 1 . Kinetic 4 | . . . 4 . Secondary . | . . . . . Self-Inflicted Damage 62 | . . . 55 7 Shots 6 | . . . 6 . Rammed 4 | . . . . 4 Targets Rammed 13 | . . . 9 4 Kicked 9 | . . . 9 . Crushed . | . . . . . Highest Temperature 153 | . . . 153 1 Average Temperature 36 | . . . 36 1 Received Heat Transfer 678 | . . . 477 201 Siege Activations . | . . . . . Martial Activations . | . . . . . Shielding Activations . | . . . . . Robots Disrupted . | . . . . . Combat Hostiles . | . . . . . Robots Corrupted . | . . . . . Combat Hostiles . | . . . . . Parts Fried . | . . . . . Impact Corruptions . | . . . . . Robots Melted 2 | . . . 2 . Combat Hostiles 2 | . . . 2 . Parts Melted 1 | . . . 1 . Heat Transferred 2150 | . . . 2125 25 Parts Sabotaged . | . . . . . Parts Stolen . | . . . . . Parts Stripped . | . . . . . Power Chain Reactions 3 | . . . 3 . Alert | -11 -10 -10 -9 -9 ------- Run | Yrd Mat Min Mat Sto Maximum Alert Level 1 | . . . 1 . Low Security (%) 99 | 100 100 100 99 100 Level 1 . | . . . . . Level 2 . | . . . . . Level 3 . | . . . . . Level 4 . | . . . . . Level 5 . | . . . . . High Security . | . . . . . Max Security . | . . . . . Peak Influence 208 | . . . 208 42 Initial 42 | . . . . 42 Average 54 | . . . 95 14 Influence Increases 773 | . . . 668 105 Destroy 0b10 Robot/C 460 | . . . 420 40 Destroy 0b10 Robot/NC 10 | . . . 10 . Destroy Leader 110 | . . . 90 20 Successful Hack 12 | . . . 12 . Disable Machine 18 | . . . 18 . Destroy Structure 13 | . . . 13 . Lose Combat Pursuer 150 | . . . 105 45 Influence Decreases 773 | . . . 550 223 Entered New Map 76 | . . . . 76 Time Decay 645 | . . . 520 125 Lost Part 52 | . . . 30 22 Squads Dispatched 5 | . . . 4 1 Investigation 2 | . . . 2 . Extermination . | . . . . . Reinforcement 3 | . . . 2 1 Assault . | . . . . . Garrison . | . . . . . Intercept . | . . . . . Searches Triggered . | . . . . . Construction Impeded 1 | . . . 1 . Haulers Reinforced . | . . . . . Active Scanning Responses . | . . . . . Cargo Convoy Interrupts . | . . . . . Stealth | -11 -10 -10 -9 -9 --------- Run | Yrd Mat Min Mat Sto Distress Signals 6 | . 1 . 5 . Communications Jammed . | . . . . . Distress Signals . | . . . . . Times Spotted 53 | . 3 . 41 9 Peak Tracking Total 6 | . 6 . 6 3 Tactical Retreats 7 | . . . 4 3 Traps | -11 -10 -10 -9 -9 ------- Run | Yrd Mat Min Mat Sto Traps Triggered 5 | . . . 3 2 Indirectly . | . . . . . Trap Hack Attempts . | . . . . . Triggered . | . . . . . Disarmed . | . . . . . Reprogrammed . | . . . . . Reused . | . . . . . Traps Extracted . | . . . . . Installed . | . . . . . Triggered . | . . . . . Machines | -11 -10 -10 -9 -9 ---------- Run | Yrd Mat Min Mat Sto Machines Disabled 2 | . . . 2 . Max in Single Turn 2 | . . . 2 . Machines Repaired . | . . . . . Machines Dismantled . | . . . . . Machines Sabotaged . | . . . . . Overloaded Fab Kills . | . . . . . Hacking | -11 -10 -10 -9 -9 --------- Run | Yrd Mat Min Mat Sto Machines Accessed 3 | . 1 . 1 1 Terminals 3 | . 1 . 1 1 Fabricators . | . . . . . Repair Stations . | . . . . . Recycling Units . | . . . . . Scanalyzers . | . . . . . Garrison Access . | . . . . . Total Hacks 7 | . 2 . 3 2 Successful 3 | . . . 2 1 Failed 4 | . 2 . 1 1 Catastrophic 1 | . 1 . . . Database Lockouts . | . . . . . Manual . | . . . . . Terminals 7 | . 2 . 3 2 Fabricators . | . . . . . Repair Stations . | . . . . . Recycling Units . | . . . . . Scanalyzers . | . . . . . Garrison Access . | . . . . . Terminal Hacks 3 | . . . 2 1 Open Door 1 | . . . . 1 Locate Traps 1 | . . . 1 . Recall Assault 1 | . . . 1 . Fabricator Hacks . | . . . . . Repair Station Hacks . | . . . . . Recycling Unit Hacks . | . . . . . Scanalyzer . | . . . . . Garrison Access Hacks . | . . . . . Unauthorized Hacks . | . . . . . Terminals . | . . . . . Fabricators . | . . . . . Repair Stations . | . . . . . Recycling Units . | . . . . . Scanalyzers . | . . . . . Garrison Access . | . . . . . Data Cores Recovered . | . . . . . Used . | . . . . . Hacking Detections 2 | . . . 1 1 Full Trace Events 1 | . . . 1 . Feedback Events . | . . . . . Feedback Blocked . | . . . . . Robot Schematics Acquired . | . . . . . Robots Built . | . . . . . Authchips . | . . . . . Time . | . . . . . Total Robot Build Rating . | . . . . . Part Schematics Acquired . | . . . . . Parts Built . | . . . . . Authchips . | . . . . . Time . | . . . . . Total Part Build Rating . | . . . . . Parts Repaired . | . . . . . Time . | . . . . . Parts Recycled . | . . . . . Recycled Matter . | . . . . . Retrieved Matter . | . . . . . Retrieved Components . | . . . . . Parts Scanalyzed . | . . . . . Part Schematics Acquired . | . . . . . Parts Damaged . | . . . . . Bothacking | -11 -10 -10 -9 -9 ------------ Run | Yrd Mat Min Mat Sto Used RIF Installer . | . . . . . Robots Hacked . | . . . . . Non-combat . | . . . . . Combat . | . . . . . Robot Hacks Applied . | . . . . . Relay Couplers Released . | . . . . . Fabnet Peak Effective % . | . . . . . Robots Rewired . | . . . . . Allies Hacked . | . . . . . Hacks Repelled . | . . . . . Allies | -11 -10 -10 -9 -9 -------- Run | Yrd Mat Min Mat Sto Total Allies . | . . . . . Largest Group . | . . . . . Highest-Rated Group . | . . . . . Highest-Rated Ally . | . . . . . Total Orders . | . . . . . Ally Attacks . | . . . . . Total Damage . | . . . . . Kills . | . . . . . Allies Corrupted . | . . . . . Allies Melted . | . . . . . Intel | -11 -10 -10 -9 -9 ------- Run | Yrd Mat Min Mat Sto Active Infowar (turns) . | . . . . . Robot Analysis Total . | . . . . . Derelict Logs Recovered 1 | . . 1 . . Drone Launches . | . . . . . Drone Recoveries . | . . . . . Exploration | -11 -10 -10 -9 -9 ------------- Run | Yrd Mat Min Mat Sto Turns Passed 2010 | 85 50 444 1100 331 Spaces Moved 1521 | 75 42 371 713 320 Core 304 | 24 . . 17 263 Treads . | . . . . . Legs 1217 | 51 42 371 696 57 Wheels . | . . . . . Hover . | . . . . . Flight . | . . . . . Fastest Speed 50 | 50 120 120 120 50 Average Speed 116 | 100 120 120 124 96 Slowest Speed 300 | 120 120 120 300 300 Overloaded Moves . | . . . . . Propulsion Burnouts . | . . . . . Robots Hopped . | . . . . . Potential Cave-ins . | . . . . . Cave-ins Triggered . | . . . . . Exploration Rate (%) 35 | 4 9 63 49 51 Regions Visited 4 Branch Regions 2 Pre-discovered Areas . | . . . . . Known Exits Taken . | . . . . . Unknown Exits Taken 4 | 1 1 1 1 . Scrap Searched . | . . . . . Spaces Dug . | . . . . . Terrain Destroyed 10 | . . . 10 . Melee . | . . . . . Projectile 2 | . . . 2 . AOE 8 | . . . 8 . Terrain Rammed . | . . . . . Walls Destroyed . | . . . . . Machines Disabled . | . . . . . Actions | -11 -10 -10 -9 -9 --------- Run | Yrd Mat Min Mat Sto Total 1640 | 82 41 370 812 335 Wait . | . . . . . Move 1517 | 74 41 370 712 320 Hop . | . . . . . Pick Up 12 | 2 . . 9 1 Fast Attach 15 | 6 . . 7 2 Attach 8 | . . . 6 2 Detach 1 | . . . 1 . Swap 5 | . . . 5 . Drop 10 | . . . 9 1 Fire 59 | . . . 54 5 Melee . | . . . . . Ram 4 | . . . . 4 Kick 9 | . . . 9 . Crush . | . . . . . Escape Stasis . | . . . . . Rewire . | . . . . . Trap . | . . . . . Miscellaneous . | . . . . . Route ------- -11/Scrapyard -10/Materials -10/Mines -9/Materials -9/Storage (discovered 1 exit: Rec) History --------- Turn | Location | Event 5 | -11/Scrapyard | Discovered new exit (range 15) 86 | -11/Scrapyard | Entered Materials 114 | -10/Materials | Discovered new exit (range 16) 136 | -10/Materials | Entered Mines 315 | -10/Mines | Build established: Mutant 574 | -10/Mines | Discovered new exit (range 5) 580 | -10/Mines | Entered Materials 580 | -9/Materials | Evolved 2 slots: Utility x1, Weapon x1 954 | -9/Materials | Build established: Tank 1615 | -9/Materials | Discovered new exit (range 16) 1680 | -9/Materials | Entered Storage 1681 | -9/Storage | Identified exit to Recycling 1791 | -9/Storage | Core integrity fell below 50% 1841 | -9/Storage | Released all parts (4) 1938 | -9/Storage | Core integrity fell below 20% 2011 | -9/Storage | Destroyed by G-34 Mercenary with Small Laser Last Messages --------------- 01857_ Identified F-cell Engine. 01870_ Dropped F-cell Engine. 01882_ K-01 Serf collects debris. 01937_ Triggered EMP Trap. 01937_ A bubble of electromagnetic force engulfs the area. 01937_ EMP Trap short circuited. 01937_ Transfer Shaft disabled. 01937_ EMP Trap short circuited. 01937_ A bubble of electromagnetic force engulfs the area. 01937_ EMP Trap short circuited. 01937_ Door malfunctions. 01937_ EMP Trap short circuited. 01937_ A bubble of electromagnetic force engulfs the area. 01937_ EMP Trap short circuited. 01937_ A bubble of electromagnetic force engulfs the area. 01949_ O-16 Technician: "IFF HANDSHAKE FAILED. SECURING TERMINAL." 01959_ Acquired Sml. Storage Unit. 01959_ ALERT: Hostiles spotted, dispatching reinforcements to Terminal S009. 01995_ Lgt. Ion Engine destroyed. Map ----- +----------------------------------------------------+ | ?????????????????????????????????????? | | ????????????????????????>?????????????? | | ??????????????????????????????????????? | | ??????????????????????????????????????? | | ?????????????????????????????????????? | | ?????????????????????????????????????? | | ??????????????????????????????????????? | | ??????????????????????????????????????? | | ??????????????????????????????????????? | | ??????????????????????????????????????? | | ??????????????????????????????????????? | | ??????????????????????????????????????? | | ??????????????????????????????????????? | | ??????????????????????????????????????? | | ??????????????????????????????????????? | | ???? ???????????????????????????????? | | ???# ???????????????????????????????? | | ???/ +??????????????????????????????? | | ???# #??????????????????????????????? | | ???# #??????????????????????????????? | | ???# #??????????????????????????????? | | ???# #????##############????????????? | | ???# #????# #????????????? | | #??# #????# #????????????? | | #??# #????# ### #????????? | | #??# #????# @ #????????? | | #?## ##???# g # #????????? | | #?# ###########+###### #????????? | | #?# #??????? | | #?# +??????? | | ### ^ #??????? | | ####+#########+##### #??????? | | #### ## #???????????? +??????? | | #??# ## #???????????? #??????? | | #### ## #????????????? #??????? | | ## ## #????????????? #??????? | | #### ## #??????????????#??????? | | ???# ## ] #?????????????????????? | | ???# ## [#?????????????????????? | | ???# ## #?????????????????????? | | ???# ## #?????????????????????? | | #### ## #?????????????????????? | | ## ## #?????????????????????? | | ## ##########?????????????????????? | | ## #? #?????????????????????? | | ## # #?????????????????????? | | ## # #?????????????????????? | | ## / #?????????????????????? | | #### # #?????????????????????? | | # #?????????????????????? | +----------------------------------------------------+ Best States ------------- Heat Dissipation 38 Energy Generation 19 Energy Capacity 500 Matter Stores 300 Matter Capacity 300 Sight Range 16 Terrain Scan Density 10 Armor Coverage 150 Resistance: KI 20 Resistance: TH 20 Resistance: EX 20 Resistance: EM 20 Resistance: I 20 Resistance: S 20 Resistance: P 20 Core Shielding 20 Evasion (%) 55 Offensive Hacking 10 Item Schematics ----------------- None Robot Schematics ------------------ None Fabricated ------------ Nothing Repaired ---------- Nothing Alien Tech Used ----------------- None Achievements -------------- None Challenges ------------ None Game ------ Seed InterceptShadeRecalibrator Manual? 0 Play Time 00:22:45 Cumulative 38.5 hours Start 2025.06.06 @ 06:34:58 End 2025.06.06 @ 06:57:08 Sessions 1 Manual Loads 0 Difficulty Adventurer Special Mode None Game No. 79 Rogue 0 Adventurer 18 Explorer 61 Win Type - Total 0 Types 0/0/0/0/0/0/0/0/0/0 Lore% 4 Gallery% 23 Achievement% 24 Wizard Run 0 Options --------- Layout 0 ASCII 0 Keyboard 1 Movement Arrows Keybinds 0 Fullscreen 1 Font 18/SmallcapsGlow Map View 76x50 Zoom Use 0% Tactical HUD 1 Map Filters NONE Filters NONE Steam 1 RUN: fc13e1ff-ab51-42ed-ae11-e68066f26bd7